bitfinex/quotes_SOLUSD_20251002
["timestamp","ask_amount","ask_price","bid_price","bid_amount"]
[1759375797493,0.14216157,224.06,224.05,2.34553912]
[1759375798813,0.83216157,224.06,224.05,2.34553912]
[1759375799003,0.14216157,224.06,224.05,2.34553912]
[1759375799393,0.14216157,224.06,224.05,6.80882856]
[1759375801218,0.14216157,224.06,224.05,85.72462856]
[1759375802520,0.14216157,224.06,224.05,117.18462856]
[1759375803093,0.14216157,224.06,224.05,85.72462856]
[1759375803300,0.14216157,224.06,224.05,117.18462856]
[1759375803716,0.14216157,224.06,224.05,85.72462856]
[1759375804323,0.69,224.13,224.05,128.34285217]
[1759375804503,0.69,224.13,224.12,2.34553912]
[1759375804892,0.83216157,224.13,224.12,2.34553912]
[1759375806420,0.14216157,224.13,224.12,6.80743453]
[1759375806728,0.12597479,224.15,224.12,6.80743453]
[1759375807022,0.81597479,224.15,224.14,2.34553912]
[1759375807320,0.12597479,224.15,224.14,2.34553912]
[1759375808808,0.12597479,224.15,224.14,6.80703639]
[1759375809011,0.12597479,224.15,224.14,38.24703639]
[1759375810516,0.12597479,224.15,224.14,40.59257551]
[1759375810715,0.27898208,224.21,224.2,2.34553912]
[1759375811910,0.42114365,224.21,224.2,2.34553912]
[1759375812114,0.27898208,224.21,224.2,2.34553912]
[1759375812330,0.27898208,224.21,224.2,38.26584242]
[1759375812522,0.27898208,224.21,224.2,6.80584242]
[1759375812728,0.27898208,224.21,224.2,38.24584242]
[1759375813259,0.27898208,224.21,224.2,2.34553912]
[1759375813398,1.11114365,224.21,224.2,33.78553912]
[1759375813602,0.42114365,224.21,224.2,33.78553912]
[1759375814993,0.42114365,224.21,224.2,2.34553912]
[1759375815198,0.42114365,224.21,224.2,33.78553912]
[1759375816228,0.42114365,224.21,224.2,112.70133912]
[1759375816809,0.42114365,224.21,224.2,78.9158]
[1759375817010,1.11114365,224.21,224.2,112.68133912]
[1759375817900,0.42114365,224.21,224.2,112.68133912]
[1759375818099,1.11114365,224.21,224.2,112.68133912]
[1759375818528,1.11114365,224.21,224.2,81.26133912]
[1759375818716,1.11114365,224.21,224.2,81.11923912]
[1759375819127,1.11114365,224.21,224.2,78.7737]
[1759375819427,1.11114365,224.21,224.2,81.11923912]
[1759375822009,1.11114365,224.21,224.2,2.34553912]
[1759375822211,0.42114365,224.21,224.2,2.34553912]
[1759375822403,0.27898208,224.21,224.2,38.22584242]
[1759375824207,0.42114365,224.21,224.2,38.22584242]
[1759375824534,0.27898208,224.21,224.2,137.81954242]
[1759375824933,0.27898208,224.21,224.2,137.79954242]
[1759375825243,0.1,224.23,224.22,31.67647521]
[1759375825444,0.1,224.25,224.23,7.04908621]
[1759375825637,0.67,224.36,224.31,2.34553912]
[1759375825952,0.67,224.37,224.31,33.84553912]
[1759375826250,377.33390509,224.32,224.31,15.57944228]
[1759375826450,310.38436845,224.32,224.31,40.91462533]
[1759375826627,310.38436845,224.32,224.31,9.39462533]
[1759375826827,310.38436845,224.32,224.31,40.91462533]
[1759375827053,244.47389839,224.32,224.31,54.4209628]
[1759375827239,0.1,224.38,224.34,30.87647521]
[1759375827558,0.5,224.45,224.38,0.28432314]
[1759375827769,10.72069194,224.51,224.49,31.16079835]
[1759375827770,24.24530784,224.5,224.49,31.16079835]
[1759375827931,1.35580025,224.67,224.49,31.16079835]
[1759375827932,2.02580025,224.67,224.5,10.87647521]
[1759375828132,13.36868608,224.79,224.5,12.42107552]
[1759375828334,11.11964038,224.83,224.71,2.34553912]
[1759375828569,400.69,224.72,224.64,2.34553912]
[1759375828863,300.51084603,224.72,224.71,2.34553912]
[1759375829048,181.78112828,224.72,224.71,25.49107824]
[1759375829255,127.93849386,224.72,224.71,55.42333628]
[1759375829431,127.93849386,224.72,224.71,37.87107824]
[1759375829630,69.70864327,224.72,224.71,49.03187659]
[1759375829859,13.36094595,224.94,224.76,20.8]
[1759375830025,0.69,224.94,224.8,20.8]
[1759375830228,30.82464198,224.99,224.93,5.61438986]
[1759375830446,30.82464198,224.99,224.85,20.8]
[1759375830447,0.69,224.95,224.92,5.61438986]
[1759375830648,0.69,224.95,224.74,25.61438986]
[1759375830649,21.49,224.94,224.74,5.61438986]
[1759375830830,21.49,224.94,224.55,22.70839279]
[1759375830831,5.61438986,224.89,224.66,20.0]
[1759375831025,0.14216157,224.83,224.77,5.61438986]
[1759375831249,5.61438986,224.85,224.77,5.61438986]
[1759375831250,0.28432314,224.8,224.77,5.61438986]
[1759375831452,0.28432314,224.77,224.72,5.61438986]
[1759375831756,31.81863678,224.78,224.72,5.61438986]
[1759375831757,0.28432314,224.74,224.72,5.61438986]
[1759375831933,0.28432314,224.71,224.69,5.61438986]
[1759375832262,0.28432314,224.71,224.6,2.32613575]
[1759375832263,0.28432314,224.69,224.6,2.32613575]
[1759375832432,11.99295992,224.68,224.67,5.61438986]
[1759375832635,11.30295992,224.67,224.6,2.32613575]
[1759375832952,0.14216157,224.66,224.65,5.61438986]
[1759375833731,0.14216157,224.66,224.58,46.70848343]
[1759375833732,0.14216157,224.66,224.58,51.16110644]
[1759375834156,0.69,224.77,224.68,20.8]
[1759375834358,5.61438986,224.81,224.72,5.61438986]
[1759375834532,5.61438986,224.81,224.68,54.38]
[1759375834533,0.14216157,224.74,224.7,5.61438986]
[1759375835830,0.14216157,224.74,224.68,20.8]
[1759375835831,0.69,224.76,224.72,5.61438986]
[1759375836041,11.1166431,224.89,224.75,5.61438986]
[1759375836042,0.69,224.79,224.75,5.61438986]
[1759375836259,0.14216157,224.77,224.75,5.61438986]
[1759375836636,0.14216157,224.77,224.69,4.45045084]
[1759375836637,0.69,224.79,224.73,5.61438986]
[1759375836938,0.69,224.79,224.74,5.61438986]
[1759375837433,11.56647521,224.85,224.78,5.61438986]
[1759375837939,11.56647521,224.85,224.75,4.44934121]
[1759375838146,1.11648471,224.84,224.77,5.61438986]
[1759375838449,0.97432314,224.84,224.77,5.61438986]
[1759375838848,1.11648471,224.84,224.77,5.61438986]
[1759375839048,0.14216157,224.82,224.77,5.61438986]
[1759375839438,0.14216157,224.82,224.76,4.44909431]
[1759375839653,0.14216157,224.82,224.79,5.61438986]
[1759375840148,0.14216157,224.82,224.76,4.44909431]
[1759375840347,0.14216157,224.82,224.79,5.61438986]
[1759375842856,0.83216157,224.82,224.79,5.61438986]
[1759375843065,0.83216157,224.82,224.77,4.44891089]
[1759375843255,0.14216157,224.84,224.77,4.44891089]
[1759375843457,10.87647521,224.87,224.77,15.57139164]
[1759375843655,0.69,224.86,224.77,15.57139164]
[1759375844356,0.14216157,224.85,224.77,15.57139164]
[1759375844554,0.14216157,224.85,224.75,4.44928792]
[1759375844555,11.01863678,224.83,224.75,4.44928792]
[1759375844758,0.14216157,224.81,224.76,20.8]
[1759375844946,0.14216157,224.79,224.76,20.8]
[1759375845369,0.83216157,224.79,224.76,20.8]
[1759375845574,0.14216157,224.77,224.76,20.8]
[1759375845869,0.14216157,224.77,224.73,94.77421128]
[1759375846271,0.14216157,224.77,224.73,115.57421128]
[1759375846456,0.14216157,224.77,224.73,94.77421128]
[1759375846767,0.14216157,224.77,224.73,115.57421128]
[1759375847771,0.69,224.83,224.76,20.8]
[1759375848068,3.88477145,224.87,224.77,33.3379]
[1759375848254,15.56120257,224.92,224.76,20.8]
[1759375848255,10.87647521,224.81,224.76,20.8]
[1759375848460,0.83216157,224.8,224.76,20.8]
[1759375848659,0.14216157,224.78,224.76,20.8]
[1759375849174,0.14216157,224.78,224.76,25.24914821]
[1759375850060,0.69,224.87,224.76,36.37212382]
[1759375850462,0.14216157,224.86,224.76,36.37212382]
[1759375851769,0.69,224.9,224.76,36.37212382]
[1759375851770,0.69,224.9,224.76,58.61807505]
[1759375852068,0.14216157,224.89,224.76,58.61807505]
[1759375852250,0.69,224.93,224.82,20.8]
[1759375852450,0.69,224.93,224.86,20.8]
[1759375852650,0.69,224.97,224.86,20.8]
[1759375852850,0.69,224.97,224.87,4.44701383]
[1759375853062,0.14216157,224.95,224.87,4.44701383]
[1759375853283,0.59,225.0,224.88,33.58]
[1759375853479,0.69,224.98,224.88,33.58]
[1759375854165,0.82216157,224.97,224.87,15.5645484]
[1759375854481,0.14216157,224.95,224.88,54.38]
[1759375854648,0.14216157,224.93,224.88,33.58]
[1759375854849,0.82216157,224.93,224.89,4.44661834]
[1759375855055,0.14216157,224.93,224.89,4.44661834]
[1759375855257,0.14216157,224.93,224.88,33.58]
[1759375855258,0.14216157,224.91,224.87,13.49981562]
[1759375855487,0.14216157,224.91,224.71,34.7]
[1759375855488,0.14216157,224.89,224.78,4.44879437]
[1759375855793,0.14216157,224.87,224.78,38.02879437]
[1759375856150,0.14216157,224.87,224.78,49.15078031]
[1759375856676,0.82216157,224.87,224.78,17.88060275]
[1759375856860,0.14216157,224.85,224.78,20.8]
[1759375857063,0.14216157,224.83,224.71,34.7]
[1759375857364,0.14216157,224.81,224.72,49.1749377]
[1759375857753,0.14216157,224.81,224.75,22.58106284]
[1759375857950,0.14216157,224.81,224.75,1.78106284]
[1759375858185,0.14216157,224.81,224.75,20.8]
[1759375858483,0.14216157,224.81,224.75,54.4]
[1759375858678,0.14216157,224.81,224.75,67.75085863]
[1759375858985,0.14216157,224.81,224.76,15.57216585]
[1759375859478,0.14216157,224.85,224.76,15.57216585]
[1759375859684,0.82216157,224.85,224.76,15.57216585]
[1759375859870,0.14216157,224.85,224.76,15.57216585]
[1759375860081,0.14216157,224.83,224.74,4.4494143]
[1759375860254,0.14216157,224.81,224.74,4.4494143]
[1759375860461,44.74079835,224.93,224.76,20.8]
[1759375860658,0.14216157,224.89,224.76,20.8]
[1759375860987,5.12700364,224.88,224.77,4.4489923]
[1759375861180,0.28432314,224.86,224.76,4.44912463]
[1759375861366,10.87647521,224.83,224.74,33.62]
[1759375861571,0.82216157,224.82,224.74,33.62]
[1759375861987,0.82216157,224.82,224.73,58.88961679]
[1759375862198,0.14216157,224.82,224.73,70.01407725]
[1759375862569,0.14216157,224.82,224.73,83.45955462]
[1759375862769,0.68,224.84,224.73,83.45955462]
[1759375863202,0.14216157,224.83,224.73,83.45955462]
[1759375865676,0.14216157,224.83,224.75,4.4493882]
[1759375866086,0.14216157,224.83,224.73,45.36993783]
[1759375866087,0.14216157,224.81,224.73,34.24547737]
[1759375866288,11.16079835,224.85,224.73,34.24547737]
[1759375866289,0.14216157,224.79,224.73,34.24547737]
[1759375867082,0.14216157,224.79,224.74,4.44956118]
[1759375867274,0.14216157,224.79,224.74,15.57352665]
[1759375868569,0.14216157,224.81,224.74,15.57352665]
[1759375869477,0.14216157,224.79,224.74,15.57352665]
[1759375871107,0.14216157,224.77,224.74,15.57352665]
[1759375871485,0.14216157,224.77,224.74,4.44956118]
[1759375871785,0.14216157,224.75,224.72,4.44982664]
[1759375871984,0.14216157,224.79,224.72,4.44982664]
[1759375872507,0.14216157,224.79,224.72,15.57478214]
[1759375873290,0.14216157,224.77,224.72,4.44982664]
[1759375873482,0.14216157,224.75,224.67,3.65475731]
[1759375873682,0.14216157,224.75,224.66,54.28]
[1759375873907,0.14216157,224.75,224.68,4.45064269]
[1759375874599,0.82216157,224.75,224.68,4.45064269]
[1759375874796,0.68,224.81,224.71,20.8]
[1759375875010,0.68,224.81,224.71,54.26]
[1759375875319,10.87647521,224.83,224.71,54.26]
[1759375875524,0.68,224.84,224.71,54.26]
[1759375875693,11.55647521,224.87,224.71,54.26]
[1759375875884,11.55647521,224.87,224.75,20.8]
[1759375876088,11.55647521,224.87,224.76,33.52]
[1759375876819,10.87647521,224.83,224.73,4.44978418]
[1759375877123,10.87647521,224.83,224.73,15.57424464]
[1759375877124,0.82216157,224.82,224.73,15.57424464]
[1759375877635,0.14216157,224.82,224.73,15.57424464]
[1759375878217,0.14216157,224.82,224.76,20.8]
[1759375878514,0.68,224.87,224.76,54.34]
[1759375878820,0.14216157,224.86,224.77,15.57147305]
[1759375879014,0.68,224.87,224.77,15.57147305]
[1759375879523,0.14216157,224.86,224.77,15.57147305]
[1759375881105,0.14216157,224.84,224.78,20.8]
[1759375881320,0.14216157,224.84,224.77,4.4489923]
[1759375881517,0.86216157,224.84,224.77,4.4489923]
[1759375882236,0.86216157,224.84,224.76,4.44919024]
[1759375882407,0.14216157,224.84,224.76,15.57216585]
[1759375882836,0.14216157,224.82,224.76,15.57216585]
[1759375884320,0.14216157,224.82,224.76,11.12297561]
[1759375884916,0.14216157,224.86,224.76,11.12297561]
[1759375886040,0.14216157,224.86,224.76,31.92297561]
[1759375886343,0.14216157,224.86,224.79,20.8]
[1759375886912,0.14216157,224.88,224.78,20.8]
[1759375887142,0.14216157,224.88,224.79,54.18]
[1759375887644,0.69,224.92,224.79,54.18]
[1759375888370,0.83216157,224.91,224.8,15.56939501]
[1759375888553,0.83216157,224.91,224.8,48.92939501]
[1759375889742,0.14216157,224.91,224.83,20.8]
[1759375890525,11.01863678,224.92,224.84,4.44760718]
[1759375890730,0.14216157,224.9,224.84,4.44760718]
[1759375890930,0.83216157,224.9,224.84,4.44760718]
[1759375891523,0.14216157,224.9,224.84,4.44760718]
[1759375892648,0.14216157,224.91,224.84,11.11901796]
[1759375893324,0.14216157,224.89,224.82,37.72800284]
[1759375893525,0.14216157,224.89,224.82,48.84800995]
[1759375893744,0.59,225.0,224.85,20.8]
[1759375893956,0.59,225.0,224.86,20.8]
[1759375894154,0.59,225.0,224.9,20.8]
[1759375894528,0.14216157,224.99,224.9,20.8]
[1759375894745,0.59,225.0,224.91,15.56178026]
[1759375895735,4.47477145,225.0,224.91,48.90178026]
[1759375895939,0.14216157,224.99,224.91,48.90178026]
[1759375896460,0.14216157,224.97,224.89,4.44645372]
[1759375896666,0.14216157,224.95,224.88,4.44681607]
[1759375897436,0.14216157,224.95,224.88,15.56385626]
[1759375898832,0.14216157,224.94,224.88,4.44681607]
[1759375899840,0.14216157,224.94,224.87,4.44701383]
[1759375900238,0.14216157,224.94,224.87,15.5645484]
[1759375901164,0.14216157,224.96,224.87,11.11753457]
[1759375901859,4.5874193,224.96,224.87,11.11753457]
[1759375902071,0.14216157,224.94,224.86,4.44721159]
[1759375902367,0.14216157,224.94,224.86,15.56524058]
[1759375902735,4.57477145,225.01,224.89,20.8]
[1759375902933,4.57477145,225.01,224.9,33.22]
[1759375903253,0.69,225.01,224.9,33.22]
[1759375903446,5.13425338,225.01,224.91,15.56178026]
[1759375903640,5.03444939,225.0,224.91,15.56178026]
[1759375903969,0.14216157,224.99,224.91,15.56178026]
[1759375904274,0.83216157,224.99,224.91,4.44622293]
[1759375905233,0.14216157,224.97,224.91,4.44622293]
[1759375905480,0.14216157,224.97,224.89,37.60661834]
[1759375906241,0.14216157,224.97,224.89,48.7231642]
[1759375907046,4.58720744,224.97,224.89,48.7231642]
[1759375907447,10.20289373,224.97,224.89,4.44661834]
[1759375907647,0.14216157,224.95,224.89,4.44661834]
[1759375908737,0.14216157,224.95,224.89,15.5631642]
[1759375909769,5.27680377,224.99,224.89,11.11654586]
[1759375910571,4.58680377,224.99,224.89,11.11654586]
[1759375912352,5.27680377,224.99,224.89,11.11654586]
[1759375912860,0.14216157,224.97,224.87,20.8]
[1759375913053,0.83216157,224.97,224.87,20.8]
[1759375913248,0.83216157,224.97,224.88,33.04]
[1759375913655,0.83216157,224.97,224.9,4.9]
[1759375913860,5.27727637,224.97,224.91,4.44622293]
[1759375915949,5.27727637,224.97,224.9,4.9]
[1759375916152,5.27727637,224.97,224.89,4.446424]
[1759375916153,0.14216157,224.95,224.89,4.446424]
[1759375916357,0.14216157,224.93,224.88,4.44680419]
[1759375916561,0.81216157,224.93,224.88,4.44680419]
[1759375916869,0.14216157,224.93,224.88,4.44680419]
[1759375918647,0.14216157,224.94,224.88,4.44680419]
[1759375919566,0.67,224.99,224.9,4.9]
[1759375919766,11.46647521,225.0,224.9,4.9]
[1759375920159,0.14216157,224.99,224.9,4.9]
[1759375920757,0.81216157,224.99,224.9,4.9]
[1759375921052,0.14216157,224.97,224.9,4.9]
[1759375921253,0.14216157,224.97,224.9,37.84]
[1759375921669,0.14216157,224.97,224.91,15.56178026]
[1759375922559,0.59,225.0,224.91,15.56178026]
[1759375923063,0.59,225.0,224.94,20.8]
[1759375923255,0.59,225.0,224.95,32.9]
[1759375923670,0.59,225.0,224.96,4.4452347]
[1759375924055,0.59,225.0,224.96,28.75665396]
[1759375924371,0.59,225.0,224.96,15.55832147]
[1759375924978,0.59,225.0,224.97,32.94]
[1759375925168,0.59,225.0,224.96,25.2452347]
[1759375925383,0.14216157,224.99,224.96,58.1852347]
[1759375925756,0.14216157,224.99,224.96,58.1652347]
[1759375925959,0.14216157,224.99,224.96,25.2452347]
[1759375926164,0.14216157,224.99,224.96,58.1652347]
[1759375926360,0.14216157,224.99,224.96,71.67965499]
[1759375926770,0.14216157,224.99,224.96,82.79274176]
[1759375928672,0.14216157,224.99,224.98,4.44483954]
[1759375929173,0.14216157,224.99,224.97,32.9]
[1759375929497,0.14216157,224.99,224.97,32.84]
[1759375929704,0.14216157,224.99,224.96,17.95958058]
[1759375929898,0.81216157,224.99,224.96,17.95958058]
[1759375930203,0.14216157,224.97,224.91,7.93270237]
[1759375930488,0.14216157,224.97,224.91,19.0482597]
[1759375930781,0.14216157,224.95,224.91,32.86]
[1759375930966,0.81216157,224.95,224.91,32.86]
[1759375931165,0.67,224.94,224.91,32.86]
[1759375931372,0.14216157,224.95,224.9,18.45938159]
[1759375931586,0.14216157,224.93,224.9,46.41938159]
[1759375931758,0.14216157,224.93,224.9,13.55938159]
[1759375932080,0.14216157,224.91,224.83,19.09081527]
[1759375932488,0.14216157,224.91,224.86,20.8]
[1759375932688,0.14216157,224.91,224.87,32.88]
[1759375932868,0.67,224.99,224.88,4.44681607]
[1759375933070,0.59,225.0,224.88,21.38476158]
[1759375933279,0.59,225.0,224.91,20.8]
[1759375933462,0.59,225.0,224.92,32.9]
[1759375933787,0.59,225.0,224.93,32.9]
[1759375933788,0.67,224.99,224.93,32.9]
[1759375933977,0.81216157,224.98,224.93,32.9]
[1759375934281,0.14216157,224.96,224.89,4.9]
[1759375934492,0.14216157,224.94,224.88,32.88]
[1759375934868,0.14216157,224.94,224.89,4.44661834]
[1759375935260,0.14216157,224.92,224.89,4.44661834]
[1759375935460,0.14216157,224.92,224.88,32.88]
[1759375935461,0.81216157,224.92,224.88,32.88]
[1759375936471,0.81216157,224.92,224.88,37.32676039]
[1759375936666,0.14216157,224.92,224.88,37.32676039]
[1759375936994,0.81216157,224.92,224.88,37.28676039]
[1759375937393,0.81216157,224.92,224.88,4.44676039]
[1759375937600,0.81216157,224.92,224.87,125.39171525]
[1759375938103,0.67,224.91,224.87,13.35171525]
[1759375938303,0.14216157,224.89,224.85,37.26726622]
[1759375938893,0.81216157,224.89,224.83,85.02090532]
[1759375939082,0.81216157,224.89,224.85,32.82]
[1759375939481,0.14216157,224.87,224.84,32.8]
[1759375939716,0.81216157,224.87,224.84,32.8]
[1759375940007,0.14216157,224.85,224.8,4.44822161]
[1759375940210,0.14216157,224.85,224.81,32.8]
[1759375940211,0.81216157,224.85,224.81,32.8]
[1759375940389,0.81216157,224.85,224.81,45.9057097]
[1759375940877,0.14216157,224.83,224.81,45.9057097]
[1759375941083,0.81216157,224.86,224.81,45.9057097]
[1759375941273,0.14216157,224.84,224.81,45.9057097]
[1759375941872,0.14216157,224.84,224.81,13.1057097]
[1759375942077,0.14216157,224.84,224.81,4.44818379]
[1759375942694,0.14216157,224.84,224.83,20.8]
[1759375942900,0.69,224.93,224.83,53.56]
[1759375943488,0.69,224.96,224.83,132.76]
[1759375943688,10.87647521,224.97,224.87,20.8]
[1759375943895,10.87647521,224.97,224.88,32.78]
[1759375943896,0.67,224.96,224.88,32.78]
[1759375944103,0.67,224.96,224.89,32.78]
[1759375944413,0.67,224.96,224.9,32.78]
[1759375944586,0.67,224.96,224.91,32.78]
[1759375945002,4.44484475,224.98,224.91,37.22604294]
[1759375945308,0.14216157,224.96,224.93,4.9]
[1759375945486,0.81216157,224.96,224.93,4.9]
[1759375946004,0.14216157,224.94,224.93,4.9]
[1759375946192,0.81216157,224.94,224.9,32.76]
[1759375946504,0.81216157,224.94,224.89,32.76]
[1759375947806,0.81216157,224.94,224.89,37.20661017]
[1759375948282,0.81216157,224.93,224.89,32.76]
[1759375948702,0.14216157,224.91,224.88,32.74]
[1759375949215,0.81216157,224.91,224.87,32.72]
[1759375949583,0.14216157,224.89,224.87,32.72]
[1759375949786,0.81216157,224.89,224.85,32.72]
[1759375950386,0.81216157,224.89,224.84,32.72]
[1759375951512,0.14216157,224.89,224.84,32.72]
[1759375951815,0.14216157,224.87,224.84,32.72]
[1759375952331,0.81216157,224.87,224.84,32.72]
[1759375952490,0.81216157,224.87,224.81,13.35838644]
[1759375952811,0.81216157,224.87,224.82,32.68]
[1759375952990,0.14216157,224.87,224.82,37.12788228]
[1759375953822,0.14216157,224.85,224.81,17.9574963]
[1759375953995,0.14216157,224.85,224.81,4.44800565]
[1759375955583,0.14216157,224.85,224.81,83.64800565]
[1759375955988,0.81216157,224.9,224.81,97.30223334]
[1759375956913,0.14216157,224.88,224.82,32.62]
[1759375957493,0.14216157,224.88,224.83,32.6]
[1759375957494,13.34679246,224.88,224.83,32.6]
[1759375957699,0.14216157,224.86,224.83,32.6]
[1759375957896,0.81216157,224.86,224.83,32.6]
[1759375958322,0.81216157,224.86,224.82,79.2]
[1759375958717,0.14216157,224.86,224.82,79.2]
[1759375959032,0.14216157,224.84,224.82,79.2]
[1759375959199,11.11474423,224.93,224.83,32.6]
[1759375959521,0.67,224.91,224.83,32.6]
[1759375959736,0.14216157,224.9,224.83,32.6]
[1759375960141,0.67,224.91,224.83,32.6]
[1759375960311,5.2586345,224.9,224.83,4.44762168]
[1759375960510,5.2586345,224.9,224.84,32.6]
[1759375960714,0.14216157,224.88,224.82,79.2]
[1759375961330,0.14216157,224.88,224.83,32.58]
[1759375962254,0.14216157,224.88,224.81,13.65422769]
[1759375962422,0.14216157,224.88,224.7,132.54216157]
[1759375962423,13.34679246,224.86,224.78,32.58]
[1759375962623,0.14216157,224.84,224.77,32.58]
[1759375962818,0.14216157,224.82,224.77,32.58]
[1759375963014,0.81216157,224.82,224.77,32.58]
[1759375963830,0.81216157,224.82,224.72,36.37474694]
[1759375963831,0.81216157,224.82,224.78,32.58]
[1759375964031,0.81216157,224.82,224.79,32.56]
[1759375964205,0.14216157,224.82,224.79,37.00856287]
[1759375965038,0.14216157,224.84,224.79,37.00856287]
[1759375965410,0.81216157,224.84,224.79,32.56]
[1759375965610,0.14216157,224.84,224.79,37.00853112]
[1759375965811,0.67,224.89,224.79,37.00853112]
[1759375966043,0.67,224.89,224.79,48.13002228]
[1759375966431,0.14216157,224.88,224.79,48.13002228]
[1759375967553,0.14216157,224.88,224.79,127.33002228]
[1759375967859,4.58902656,224.88,224.79,83.64853112]
[1759375968015,0.14216157,224.88,224.8,32.56]
[1759375968343,0.67,224.92,224.8,53.36]
[1759375968344,5.11606011,224.92,224.8,53.36]
[1759375968648,0.14216157,224.91,224.8,53.36]
[1759375969838,4.58840326,224.91,224.81,15.56870245]
[1759375970014,4.58840326,224.91,224.82,32.52]
[1759375970916,4.58840326,224.91,224.83,4.447805]
[1759375971718,12.36743948,224.88,224.79,4.44859646]
[1759375971950,2.30312584,224.87,224.8,32.52]
[1759375972151,0.81216157,224.87,224.8,32.52]
[1759375972345,0.14216157,224.87,224.8,32.52]
[1759375973042,10.87647521,224.95,224.81,15.56870245]
[1759375973246,0.14216157,224.92,224.81,99.21494414]
[1759375973541,0.67,224.95,224.84,20.8]
[1759375973754,0.67,224.94,224.84,20.8]
[1759375974053,0.14216157,224.93,224.85,32.54]
[1759375974227,0.14216157,224.93,224.86,32.54]
[1759375974848,0.14216157,224.93,224.85,4.44740938]
[1759375975051,0.14216157,224.93,224.86,32.52]
[1759375975660,0.59,225.0,224.86,32.52]
[1759375975838,0.59,225.0,224.89,20.8]
[1759375976155,0.14216157,224.99,224.9,32.54]
[1759375976739,0.81216157,224.99,224.9,32.54]
[1759375977051,0.67,224.99,224.91,4.44622293]
[1759375977353,0.14216157,224.98,224.92,32.52]
[1759375978150,0.14216157,224.98,224.91,15.56178026]
[1759375978474,0.14216157,224.98,224.93,32.5]
[1759375979024,0.59,225.0,224.94,4.44562994]
[1759375979331,0.59,225.0,224.94,94.7597048]
[1759375979847,0.14216157,224.99,224.94,102.48881351]
[1759375980030,0.14216157,224.99,224.94,94.7597048]
[1759375980537,0.14216157,224.99,224.95,32.5]
[1759375980741,0.59,225.0,224.95,111.7]
[1759375980952,0.59,225.0,224.99,4.44464198]
[1759375981338,0.73216157,225.0,224.99,32.5]
[1759375981656,0.73216157,225.0,224.95,20.8]
[1759375981657,0.14216157,224.99,224.95,20.8]
[1759375981829,0.14216157,224.99,224.96,36.94518409]
[1759375982031,0.14216157,224.99,224.94,4.44545861]
[1759375982234,0.59,225.0,224.97,32.5]
[1759375982732,0.59,225.0,224.98,32.5]
[1759375983330,0.59,225.0,224.99,4.44464198]
[1759375983547,0.59,225.0,224.99,30.35771941]
[1759375984042,0.59,225.0,224.99,62.87771941]
[1759375984246,0.59,225.0,224.99,66.50214075]
[1759375984825,0.59,225.0,224.99,62.87771941]
[1759375986131,0.59,225.0,224.99,109.55771941]
[1759375986344,0.59,225.0,224.99,136.92464198]
[1759375987855,0.59,225.0,224.99,83.64464198]
[1759375988266,0.59,225.0,224.99,116.10464198]
[1759375989361,0.59,225.0,224.99,83.64464198]
[1759375989660,0.73216157,225.0,224.99,111.64]
[1759375990433,0.59,225.0,224.99,111.64]
[1759375992142,0.59,225.0,224.99,79.2]
[1759375992345,0.59,225.0,224.99,111.62]
[1759375993237,0.59,225.0,224.99,79.2]
[1759375993444,0.59,225.0,224.99,111.62]
[1759375993847,0.59,225.0,224.99,116.06464198]
[1759375997061,0.59,225.0,224.99,117.84372441]
[1759375997786,0.1,225.09,225.03,20.8]
[1759375998079,0.1,225.09,225.04,32.54]
[1759375998371,0.1,225.09,225.05,32.54]
[1759375998372,0.14216157,225.07,225.05,32.54]
[1759375998544,0.81216157,225.06,225.05,30.83]
[1759375998954,0.24216157,225.09,225.05,30.83]
[1759375999165,0.24216157,225.09,225.06,4.44325957]
[1759375999361,0.24216157,225.09,225.07,32.54]
[1759376000168,0.1,225.09,225.07,36.98294448]
[1759376000358,0.24216157,225.09,225.07,36.98294448]
[1759376000558,0.1,225.09,225.07,36.98294448]
[1759376001487,0.1,225.09,225.08,32.52]
[1759376001781,0.1,225.09,225.07,4.44294448]
[1759376001980,0.1,225.09,225.08,32.5]
[1759376002774,0.76,225.09,225.08,32.5]
[1759376002952,0.1,225.09,225.08,32.5]